fUST/lending_fUST_20240612
["ID","MTS","AMOUNT","RATE_DAILY","PERIOD"]
[329187408,1718165447650,-500.0,0.00017213,2]
[329187409,1718165447660,-500.0,0.00017213,2]
[329187410,1718165447670,-500.0,0.00017213,2]
[329187411,1718165447681,-500.0,0.00017213,2]
[329187412,1718165447691,-500.0,0.00017213,2]
[329187413,1718165447701,-500.0,0.00017213,2]
[329187414,1718165447711,-500.0,0.00017213,2]
[329187415,1718165447721,-500.0,0.00017213,2]
[329187416,1718165447731,-500.0,0.00017213,2]
[329187417,1718165447740,-500.0,0.00017213,2]
[329187418,1718165447751,-503.43954632,0.00017213,2]
[329187419,1718165447761,-501.72311125,0.00017213,2]
[329187420,1718165447771,-501.89214267,0.00017213,2]
[329187421,1718165447780,-500.0,0.00017213,2]
[329187422,1718165447790,-575.29371998,0.00017213,2]
[329187423,1718165447800,-502.97117949,0.00017213,2]
[329187424,1718165447810,-500.0,0.00017213,2]
[329187425,1718165447821,-500.0,0.00017213,2]
[329187426,1718165447830,-674.34,0.00017213,2]
[329187427,1718165447840,-500.0,0.00017213,2]
[329187428,1718165447850,-500.0,0.00017213,2]
[329187429,1718165447860,-500.0,0.00017213,2]
[329187430,1718165447870,-151.0,0.00017213,2]
[329187431,1718165447880,-287.152851,0.00017213,2]
[329187432,1718165447891,-287.152851,0.00017213,2]
[329187433,1718165447901,-151.0,0.00017213,2]
[329187434,1718165447911,-500.0,0.00017213,2]
[329187435,1718165447922,-500.0,0.00017213,2]
[329187436,1718165447932,-503.29665656,0.00017213,2]
[329187438,1718165447943,-500.0,0.00017213,2]
[329187439,1718165447953,-500.0,0.00017213,2]
[329187441,1718165447962,-500.0,0.00017213,2]
[329187442,1718165447973,-500.0,0.00017213,2]
[329187443,1718165447989,-500.0,0.00017213,2]
[329187445,1718165447998,-500.0,0.00017213,2]
[329187446,1718165448009,-500.0,0.00017213,2]
[329187448,1718165448019,-9956.35,0.00017213,2]
[329187450,1718165448031,-500.0,0.00017213,2]
[329187452,1718165448042,-500.0,0.00017213,2]
[329187454,1718165448053,-500.0,0.00017213,2]
[329187456,1718165448064,-500.0,0.00017213,2]
[329187458,1718165448073,-158.691533,0.00017213,2]
[329187460,1718165448083,-500.0,0.00017213,2]
[329187462,1718165448093,-158.691533,0.00017213,2]
[329187464,1718165448102,-1663.05,0.00017213,2]
[329187466,1718165448113,-161.481521,0.00017213,2]
[329187468,1718165448124,-8074.59,0.00017213,2]
[329187470,1718165448134,-1810.670137,0.00017213,2]
[329187472,1718165448144,-418.44223584,0.00017213,2]
[329187474,1718165448154,-1810.670137,0.00017213,2]
[329187476,1718165448174,-500.0,0.00017213,2]
[329187479,1718165448192,-174.394961,0.00017213,2]
[329187481,1718165448203,-174.394961,0.00017213,2]
[329187483,1718165448213,-1810.670137,0.00017213,2]
[329187485,1718165448224,-1201.083234,0.00017213,2]
[329187487,1718165448233,-1810.670137,0.00017213,2]
[329187489,1718165448243,-1201.083234,0.00017213,2]
[329187490,1718165448253,-1201.083234,0.00017213,2]
[329187492,1718165448264,-1201.083234,0.00017213,2]
[329187494,1718165448274,-2246.162591,0.00017213,2]
[329187496,1718165448284,-174.394961,0.00017213,2]
[329187498,1718165448294,-174.394961,0.00017213,2]
[329187500,1718165448304,-500.0,0.00017213,2]
[329187502,1718165448314,-2246.162591,0.00017213,2]
[329187504,1718165448325,-500.0,0.00017213,2]
[329187506,1718165448335,-151.0,0.00017213,2]
[329187508,1718165448345,-151.0,0.00017213,2]
[329187510,1718165448355,-500.0,0.00017213,2]
[329187512,1718165448366,-500.0,0.00017213,2]
[329187514,1718165448376,-500.0,0.00017213,2]
[329187516,1718165448386,-500.0,0.00017213,2]
[329187518,1718165448396,-500.85924365,0.00017213,2]
[329187520,1718165448407,-1000.0,0.00017213,2]
[329187522,1718165448417,-500.0,0.00017213,2]
[329187524,1718165448427,-500.0,0.00017213,2]
[329187526,1718165448437,-331.038908,0.00017213,2]
[329187528,1718165448447,-331.038908,0.00017213,2]
[329187530,1718165448456,-500.0,0.00017213,2]
[329187532,1718165448466,-331.038908,0.00017213,2]
[329187534,1718165448476,-331.038908,0.00017213,2]
[329187536,1718165448486,-553.80694621,0.00017213,2]
[329187538,1718165448495,-500.0,0.00017213,2]
[329187540,1718165448505,-500.0,0.00017213,2]
[329187542,1718165448515,-500.0,0.00017213,2]
[329187544,1718165448525,-500.0,0.00017213,2]
[329187546,1718165448536,-502.74797024,0.00017213,2]
[329187548,1718165448546,-500.0,0.00017213,2]
[329187550,1718165448556,-500.0,0.00017213,2]
[329187552,1718165448566,-594.19746462,0.00017213,2]
[329187554,1718165448576,-500.0,0.00017213,2]
[329187556,1718165448587,-500.0,0.00017213,2]
[329187558,1718165448597,-1886.35,0.00017213,2]
[329187560,1718165448607,-684.31,0.00017213,2]
[329187562,1718165448617,-502.48464122,0.00017213,2]
[329187564,1718165448628,-529.76836759,0.00017213,2]
[329187566,1718165448638,-502.37103518,0.00017213,2]
[329187568,1718165448649,-500.0,0.00017213,2]
[329187570,1718165448659,-1000.0,0.00017213,2]
[329187572,1718165448669,-500.0,0.00017213,2]
[329187574,1718165448679,-1294.83,0.00017213,2]
[329187576,1718165448689,-500.0,0.00017213,2]
[329187578,1718165448703,-238.21020103,0.00017214,2]
[329187580,1718165448717,-258.39178265,0.00017214,2]
[329187583,1718165448730,-155.11275086,0.00017214,2]
[329187585,1718165448744,-155.58565513,0.00017214,2]
[329187588,1718165448759,-155.10919426,0.00017214,2]
[329187590,1718165448770,-2416.5154688,0.00017214,2]
[329187592,1718165448782,-190.49958795,0.00017214,2]
[329187594,1718165448795,-158.76299279,0.00017214,2]
[329187596,1718165448809,-191.074939,0.00017214,2]
[329187598,1718165448823,-191.074939,0.00017214,2]
[329187601,1718165448836,-151.0,0.00017214,2]
[329187603,1718165448851,-151.0,0.00017214,2]
[329187605,1718165448863,-500.0,0.0001726,2]
[329187608,1718165448876,-500.0,0.0001726,2]
[329187610,1718165448890,-500.0,0.0001726,2]
[329187612,1718165448904,-500.0,0.0001726,2]
[329187615,1718165448916,-609.25,0.0001726,2]
[329187617,1718165448928,-1191.34,0.0001726,2]
[329187619,1718165448940,-567.4,0.0001726,2]
[329187621,1718165448953,-500.0,0.0001726,2]
[329187623,1718165448964,-2918.28,0.0001726,2]
[329187626,1718165448978,-500.0,0.0001726,2]
[329187628,1718165448992,-180.40320867,0.0001726,2]
[329187630,1718165449004,-500.0,0.0001726,2]
[329187632,1718165449016,-3076.15955739,0.00017266,2]
[329187634,1718165449027,-153.0,0.00017378,2]
[329187636,1718165449038,-153.0,0.00017378,2]
[329187639,1718165449051,-153.0,0.00017378,2]
[329187641,1718165449062,-153.0,0.00017378,2]
[329187643,1718165449075,-153.0,0.00017378,2]
[329187645,1718165449087,-503.78921423,0.00017487,2]
[329187647,1718165449102,-500.0,0.00017487,2]
[329187650,1718165449116,-500.0,0.00017487,2]
[329187652,1718165449129,-500.0,0.00017487,2]
[329187654,1718165449145,-500.0,0.00017487,2]
[329187657,1718165449158,-500.0,0.00017487,2]
[329187659,1718165449173,-500.0,0.00017487,2]
[329187661,1718165449190,-500.0,0.00017487,2]
[329187663,1718165449201,-1389.105788,0.00017487,2]
[329187665,1718165449212,-151.0,0.00017487,2]
[329187667,1718165449225,-500.0,0.00017487,2]
[329187669,1718165449238,-1389.105788,0.00017487,2]
[329187672,1718165449251,-293.013129,0.00017487,2]
[329187674,1718165449264,-293.013129,0.00017487,2]
[329187676,1718165449277,-502.6171301,0.00017487,2]
[329187678,1718165449288,-3372.33602,0.00017487,2]
[329187680,1718165449300,-519.14805774,0.00017487,2]
[329187682,1718165449312,-3372.33602,0.00017487,2]
[329187685,1718165449323,-233.959898,0.00017487,2]
[329187687,1718165449337,-233.959898,0.00017487,2]
[329187689,1718165449349,-502.84122606,0.00017487,2]
[329187691,1718165449360,-500.0,0.00017487,2]
[329187693,1718165449371,-500.0,0.00017487,2]
[329187695,1718165449383,-501.48280039,0.00017487,2]
[329187697,1718165449396,-500.0,0.00017487,2]
[329187699,1718165449408,-500.0,0.00017487,2]
[329187702,1718165449419,-674.34,0.00017487,2]
[329187704,1718165449432,-501.19378573,0.00017487,2]
[329187706,1718165449443,-501.38610209,0.00017487,2]
[329187708,1718165449455,-501.55284102,0.00017487,2]
[329187710,1718165449468,-151.0,0.00017487,2]
[329187712,1718165449479,-151.0,0.00017487,2]
[329187714,1718165449490,-287.152851,0.00017487,2]
[329187716,1718165449502,-287.152851,0.00017487,2]
[329187718,1718165449514,-287.152851,0.00017487,2]
[329187721,1718165449525,-287.152851,0.00017487,2]
[329187723,1718165449537,-152.551741,0.00017487,2]
[329187725,1718165449549,-500.0,0.00017487,2]
[329187727,1718165449561,-500.0,0.00017487,2]
[329187729,1718165449573,-500.44562382,0.00017487,2]
[329187731,1718165449585,-500.0,0.00017487,2]
[329187734,1718165449600,-634.80799017,0.00017487,2]
[329187736,1718165449612,-501.06033171,0.00017487,2]
[329187738,1718165449623,-500.0,0.00017487,2]
[329187740,1718165449635,-500.0,0.00017487,2]
[329187742,1718165449650,-502.49510937,0.00017487,2]
[329187744,1718165449663,-9956.35,0.00017487,2]
[329187747,1718165449675,-500.0,0.00017487,2]
[329187749,1718165449687,-500.0,0.00017487,2]
[329187751,1718165449699,-500.0,0.00017487,2]
[329187753,1718165449711,-500.0,0.00017487,2]
[329187755,1718165449722,-158.691533,0.00017487,2]
[329187757,1718165449734,-158.691533,0.00017487,2]
[329187759,1718165449746,-500.0,0.00017487,2]
[329187761,1718165449758,-158.691533,0.00017487,2]
[329187764,1718165449770,-158.691533,0.00017487,2]
[329187766,1718165449781,-1663.05,0.00017487,2]
[329187768,1718165449793,-8074.59,0.00017487,2]
[329187770,1718165449805,-1810.670137,0.00017487,2]
[329187772,1718165449816,-1810.670137,0.00017487,2]
[329187774,1718165449827,-502.73553741,0.00017487,2]
[329187776,1718165449838,-1201.083234,0.00017487,2]
[329187779,1718165449849,-1810.670137,0.00017487,2]
[329187781,1718165449860,-174.394961,0.00017487,2]
[329187783,1718165449872,-1201.083234,0.00017487,2]
[329187785,1718165449884,-1810.670137,0.00017487,2]
[329187787,1718165449897,-174.394961,0.00017487,2]
[329187790,1718165449909,-1201.083234,0.00017487,2]
[329187792,1718165449919,-1201.083234,0.00017487,2]
[329187794,1718165449931,-2246.162591,0.00017487,2]
[329187796,1718165449943,-2246.162591,0.00017487,2]
[329187798,1718165449953,-174.394961,0.00017487,2]
[329187800,1718165449965,-174.394961,0.00017487,2]
[329187803,1718165449978,-501.88713346,0.00017487,2]
[329187805,1718165449990,-2246.162591,0.00017487,2]
[329187807,1718165450001,-2246.162591,0.00017487,2]
[329187809,1718165450014,-500.0,0.00017487,2]
[329187811,1718165450027,-151.0,0.00017487,2]
[329187814,1718165450039,-151.0,0.00017487,2]
[329187816,1718165450051,-511.27915579,0.00017487,2]
[329187818,1718165450065,-500.0,0.00017487,2]
[329187820,1718165450077,-471.80922407,0.00017487,2]
[329187822,1718165450090,-505.66099768,0.00017487,2]
[329187824,1718165450102,-553.30984144,0.00017487,2]
[329187826,1718165450114,-504.18130367,0.00017487,2]
[329187829,1718165450126,-500.0,0.00017487,2]
[329187831,1718165450138,-500.0,0.00017487,2]
[329187833,1718165450157,-331.038908,0.00017487,2]
[329187835,1718165450192,-331.038908,0.00017487,2]
[329187837,1718165450206,-331.038908,0.00017487,2]
[329187839,1718165450218,-331.038908,0.00017487,2]
[329187842,1718165450230,-500.0,0.00017487,2]
[329187844,1718165450241,-502.81665185,0.00017487,2]
[329187846,1718165450254,-500.0,0.00017487,2]
[329187848,1718165450266,-520.28513286,0.00017487,2]
[329187850,1718165450279,-500.0,0.00017487,2]
[329187852,1718165450292,-500.0,0.00017487,2]
[329187855,1718165450305,-500.0,0.00017487,2]
[329187857,1718165450318,-500.0,0.00017487,2]
[329187859,1718165450331,-1886.35,0.00017487,2]
[329187861,1718165450343,-500.0,0.00017487,2]
[329187863,1718165450356,-1057.43522132,0.00017487,2]
[329187866,1718165450369,-502.05622072,0.00017487,2]
[329187868,1718165450382,-1294.83,0.00017487,2]
[329187870,1718165450402,-1000.0,0.000175,2]
[329187872,1718165450415,-500.0,0.00017534,2]
[329187874,1718165450432,-500.0,0.00017534,2]
[329187875,1718165450444,-500.0,0.00017534,2]
[329187876,1718165450456,-500.0,0.00017534,2]
[329187877,1718165450468,-609.25,0.00017534,2]
[329187878,1718165450480,-1191.34,0.00017534,2]
[329187880,1718165450493,-567.4,0.00017534,2]
[329187882,1718165450505,-500.0,0.00017534,2]
[329187884,1718165450517,-2918.28,0.00017534,2]
[329187886,1718165450529,-500.0,0.00017534,2]
[329187888,1718165450540,-500.0,0.00017534,2]
[329187909,1718165450742,-500.0,0.00017649,2]
[329187912,1718165450763,-500.0,0.00017649,2]
[329187914,1718165450774,-500.0,0.00017649,2]
[329187916,1718165450787,-339.41123143,0.00017649,2]
[329187918,1718165450797,-500.0,0.00017649,2]
[329187920,1718165450807,-500.0,0.00017649,2]
[329187922,1718165450818,-500.0,0.00017649,2]
[329187924,1718165450828,-500.0,0.00017649,2]
[329187926,1718165450838,-507.96230771,0.00017649,2]
[329187928,1718165450850,-444.21600731,0.00017649,2]
[329187931,1718165450862,-500.0,0.00017649,2]
[329187933,1718165450872,-500.0,0.00017649,2]
[329187935,1718165450883,-500.0,0.00017649,2]
[329187937,1718165450896,-500.0,0.00017649,2]
[329187939,1718165450906,-500.0,0.00017649,2]
[329187941,1718165450916,-500.0,0.00017649,2]
[329187943,1718165450925,-502.20552067,0.00017649,2]
[329187945,1718165450936,-500.0,0.00017649,2]
[329187947,1718165450948,-500.0,0.00017649,2]
[329187949,1718165450959,-399.08780266,0.00017649,2]
[329187951,1718165450968,-151.14377,0.00017649,2]
[329187953,1718165450980,-500.0,0.00017649,2]
[329187955,1718165450994,-151.0,0.00017649,2]
[329187957,1718165451005,-262.675895,0.00017649,2]
[329187959,1718165451016,-500.0,0.00017649,2]
[329187961,1718165451027,-502.18065406,0.00017649,2]
[329187963,1718165451040,-500.0,0.00017649,2]
[329187965,1718165451051,-500.0,0.00017649,2]
[329187967,1718165451061,-500.0,0.00017649,2]
[329187969,1718165451072,-500.0,0.00017649,2]
[329187971,1718165451082,-500.0,0.00017649,2]
[329187973,1718165451093,-213.680644,0.00017649,2]
[329187975,1718165451103,-505.09613026,0.00017649,2]
[329187977,1718165451114,-213.680644,0.00017649,2]
[329187979,1718165451124,-500.0,0.00017649,2]
[329187981,1718165451134,-183.395568,0.00017649,2]
[329187983,1718165451147,-183.395568,0.00017649,2]
[329187985,1718165451156,-500.0,0.00017649,2]
[329187987,1718165451169,-500.0,0.00017649,2]
[329187989,1718165451182,-500.0,0.00017649,2]
[329187991,1718165451191,-3233.555332,0.00017649,2]
[329187993,1718165451202,-3233.555332,0.00017649,2]
[329187995,1718165451212,-538.47180481,0.00017649,2]
[329187997,1718165451222,-500.0,0.00017649,2]
[329187999,1718165451234,-504.03904831,0.00017649,2]
[329188001,1718165451244,-500.0,0.00017649,2]
[329188003,1718165451255,-506.50571928,0.00017649,2]
[329188006,1718165451265,-500.0,0.00017649,2]
[329188008,1718165451276,-500.0,0.00017649,2]
[329188010,1718165451288,-500.0,0.00017649,2]
[329188012,1718165451299,-212.55552946,0.00017649,2]
[329188013,1718165451309,-1389.105788,0.00017649,2]
[329188015,1718165451319,-260.06303151,0.00017649,2]
[329188018,1718165451330,-151.0,0.00017649,2]
[329188020,1718165451340,-500.0,0.00017649,2]
[329188021,1718165451350,-1389.105788,0.00017649,2]
[329188023,1718165451360,-293.013129,0.00017649,2]
[329188026,1718165451370,-293.013129,0.00017649,2]
[329188027,1718165451380,-503.13308798,0.00017649,2]
[329188029,1718165451391,-807.12,0.00017649,2]
[329188031,1718165451401,-500.0,0.00017649,2]
[329188033,1718165451411,-502.6169118,0.00017649,2]
[329188035,1718165451421,-3372.33602,0.00017649,2]
[329188037,1718165451431,-500.0,0.00017649,2]
[329188039,1718165451442,-3372.33602,0.00017649,2]
[329188041,1718165451453,-500.0,0.00017649,2]
[329188043,1718165451462,-1318.6,0.00017649,2]
[329188045,1718165451473,-233.959898,0.00017649,2]
[329188047,1718165451483,-191.074939,0.00017649,2]
[329188049,1718165451493,-191.074939,0.00017649,2]
[329188051,1718165451503,-233.959898,0.00017649,2]
[329188053,1718165451513,-191.074939,0.00017649,2]
[329188055,1718165451523,-191.074939,0.00017649,2]
[329188057,1718165451533,-500.0,0.00017649,2]
[329188059,1718165451543,-500.0,0.00017649,2]
[329188061,1718165451556,-500.0,0.00017649,2]
[329188063,1718165451566,-500.0,0.00017649,2]
[329188065,1718165451576,-500.0,0.00017649,2]
[329188067,1718165451586,-500.0,0.00017649,2]
[329188069,1718165451597,-500.0,0.00017649,2]
[329188071,1718165451608,-151.0,0.00017649,2]
[329188073,1718165451618,-511.33416529,0.00017649,2]
[329188075,1718165451628,-151.0,0.00017649,2]
[329188077,1718165451639,-500.0,0.00017649,2]
[329188079,1718165451651,-151.0,0.00017649,2]
[329188081,1718165451661,-151.0,0.00017649,2]
[329188083,1718165451671,-500.0,0.00017649,2]
[329188085,1718165451682,-500.0,0.00017649,2]
[329188087,1718165451692,-500.0,0.00017649,2]
[329188089,1718165451702,-500.0,0.00017649,2]
[329188091,1718165451712,-527.68990037,0.00017649,2]
[329188093,1718165451722,-500.0,0.00017649,2]
[329188095,1718165451732,-500.0,0.00017649,2]
[329188097,1718165451743,-500.0,0.00017649,2]
[329188099,1718165451753,-500.0,0.00017649,2]
[329188101,1718165451763,-500.0,0.00017649,2]
[329188103,1718165451773,-500.0,0.00017649,2]
[329188105,1718165451784,-167.66469274,0.00017649,2]
[329188107,1718165451795,-500.0,0.00017649,2]
[329188109,1718165451805,-500.0,0.00017649,2]
[329188111,1718165451814,-501.01218241,0.00017649,2]
[329188113,1718165451824,-506.35972556,0.00017649,2]
[329188115,1718165451834,-287.152851,0.00017649,2]
[329188117,1718165451844,-287.152851,0.00017649,2]
[329188118,1718165451855,-151.0,0.00017649,2]
[329188120,1718165451865,-287.152851,0.00017649,2]
[329188122,1718165451876,-151.0,0.00017649,2]
[329188124,1718165451886,-287.152851,0.00017649,2]
[329188126,1718165451897,-207.220624,0.00017649,2]
[329188128,1718165451907,-287.152851,0.00017649,2]
[329188130,1718165451916,-287.152851,0.00017649,2]
[329188132,1718165451926,-287.152851,0.00017649,2]
[329188134,1718165451940,-500.0,0.00017649,2]
[329188136,1718165451952,-287.152851,0.00017649,2]
[329188138,1718165451962,-500.0,0.00017649,2]
[329188140,1718165451974,-435.55247933,0.00017649,2]
[329188141,1718165451988,-500.0,0.00017649,2]
[329188143,1718165451999,-500.0,0.00017649,2]
[329188145,1718165452009,-235.94139885,0.00017649,2]
[329188147,1718165452023,-252.61994634,0.00017649,2]
[329188149,1718165452037,-500.0,0.00017649,2]
[329188152,1718165452047,-500.0,0.00017649,2]
[329188153,1718165452058,-500.0,0.00017649,2]
[329188155,1718165452068,-328.49690836,0.00017649,2]
[329188157,1718165452081,-500.0,0.00017649,2]
[329188159,1718165452091,-500.0,0.00017649,2]
[329188161,1718165452101,-500.0,0.00017649,2]
[329188163,1718165452111,-458.68720986,0.00017649,2]
[329188165,1718165452121,-500.0,0.00017649,2]
[329188167,1718165452132,-500.0,0.00017649,2]
[329188169,1718165452142,-500.0,0.00017649,2]
[329188171,1718165452152,-500.0,0.00017649,2]
[329188173,1718165452163,-500.0,0.00017649,2]
[329188174,1718165452174,-500.0,0.00017649,2]
[329188175,1718165452184,-500.0,0.00017649,2]
[329188177,1718165452194,-500.0,0.00017649,2]
[329188179,1718165452205,-500.0,0.00017649,2]
[329188181,1718165452215,-158.691533,0.00017649,2]
[329188183,1718165452225,-158.691533,0.00017649,2]
[329188185,1718165452235,-158.691533,0.00017649,2]
[329188187,1718165452245,-158.691533,0.00017649,2]
[329188189,1718165452255,-500.0,0.00017649,2]
[329188191,1718165452264,-158.691533,0.00017649,2]
[329188193,1718165452274,-158.691533,0.00017649,2]
[329188195,1718165452284,-158.691533,0.00017649,2]
[329188197,1718165452294,-158.691533,0.00017649,2]
[329188199,1718165452304,-514.63232221,0.00017649,2]
[329188201,1718165452315,-500.0,0.00017649,2]
[329188203,1718165452324,-517.48761169,0.00017649,2]
[329188205,1718165452334,-500.0,0.00017649,2]
[329188207,1718165452344,-500.0,0.00017649,2]
[329188209,1718165452354,-500.0,0.00017649,2]
[329188211,1718165452365,-500.0,0.00017649,2]
[329188213,1718165452376,-500.0,0.00017649,2]
[329188215,1718165452386,-500.0,0.00017649,2]
[329188217,1718165452397,-780.86,0.00017649,2]
[329188218,1718165452407,-500.46600613,0.00017649,2]
[329188220,1718165452416,-500.0,0.00017649,2]
[329188222,1718165452427,-500.0,0.00017649,2]
[329188225,1718165452437,-500.0,0.00017649,2]
[329188227,1718165452447,-500.0,0.00017649,2]
[329188229,1718165452457,-590.45,0.00017649,2]
[329188230,1718165452468,-1810.670137,0.00017649,2]
[329188233,1718165452478,-500.0,0.00017649,2]
[329188234,1718165452487,-1810.670137,0.00017649,2]
[329188236,1718165452497,-1810.670137,0.00017649,2]
[329188238,1718165452508,-1201.083234,0.00017649,2]
[329188240,1718165452518,-1810.670137,0.00017649,2]
[329188242,1718165452528,-1201.083234,0.00017649,2]
[329188244,1718165452538,-1201.083234,0.00017649,2]
[329188246,1718165452547,-1810.670137,0.00017649,2]
[329188248,1718165452557,-1810.67013076,0.00017649,2]
[329188250,1718165452568,-174.394961,0.00017649,2]
[329188252,1718165452578,-174.394961,0.00017649,2]
[329188254,1718165452589,-174.394961,0.00017649,2]
[329188256,1718165452599,-680.59,0.00017649,2]
[329188258,1718165452610,-1201.083234,0.00017649,2]
[329188260,1718165452620,-500.0,0.00017649,2]
[329188262,1718165452630,-1201.083234,0.00017649,2]
[329188264,1718165452640,-1201.08323211,0.00017649,2]
[329188266,1718165452651,-2246.162591,0.00017649,2]
[329188268,1718165452661,-500.0,0.00017649,2]
[329188270,1718165452671,-2246.162591,0.00017649,2]
[329188272,1718165452682,-2246.162591,0.00017649,2]
[329188273,1718165452692,-174.394961,0.00017649,2]
[329188275,1718165452702,-2246.162591,0.00017649,2]
[329188278,1718165452712,-174.394961,0.00017649,2]
[329188280,1718165452722,-174.394964,0.00017649,2]
[329188281,1718165452733,-500.0,0.00017649,2]
[329188283,1718165452744,-2246.162591,0.00017649,2]
[329188285,1718165452753,-2246.162591,0.00017649,2]
[329188287,1718165452764,-500.0,0.00017649,2]
[329188289,1718165452774,-2246.162591,0.00017649,2]
[329188291,1718165452785,-2246.162591,0.00017649,2]
[329188293,1718165452795,-500.0,0.00017649,2]
[329188295,1718165452805,-151.0,0.00017649,2]
[329188297,1718165452815,-151.0,0.00017649,2]
[329188299,1718165452825,-500.0,0.00017649,2]
[329188301,1718165452836,-151.0,0.00017649,2]
[329188303,1718165452845,-256.62269059,0.00017649,2]
[329188305,1718165452855,-500.0,0.00017649,2]
[329188307,1718165452865,-500.0,0.00017649,2]
[329188309,1718165452875,-500.0,0.00017649,2]
[329188311,1718165452885,-500.0,0.00017649,2]
[329188313,1718165452898,-500.0,0.00017649,2]
[329188315,1718165452908,-500.0,0.00017649,2]
[329188317,1718165452918,-500.0,0.00017649,2]
[329188319,1718165452928,-500.0,0.00017649,2]
[329188321,1718165452940,-500.0,0.00017649,2]
[329188323,1718165452951,-500.0,0.00017649,2]
[329188325,1718165452961,-705.02,0.00017649,2]
[329188327,1718165452972,-331.038908,0.00017649,2]
[329188329,1718165452985,-331.038908,0.00017649,2]
[329188331,1718165453000,-500.0,0.00017649,2]
[329188333,1718165453010,-331.038908,0.00017649,2]
[329188335,1718165453021,-500.46782935,0.00017649,2]
[329188337,1718165453032,-500.0,0.00017649,2]
[329188339,1718165453042,-269.54272208,0.00017649,2]
[329188350,1718165453153,-266.423676,0.00016214,2]
[329188352,1718165453164,-110.93588523,0.00017649,2]
[329188382,1718165453500,-266.423676,0.00016214,2]
[329188384,1718165453517,-634.783256,0.00016214,2]
[329188386,1718165453528,-634.783256,0.00016438,2]
[329188388,1718165453538,-634.783256,0.00016438,2]
[329188390,1718165453549,-266.423676,0.00016438,2]
[329188392,1718165453559,-634.783256,0.00016438,2]
[329188394,1718165453570,-266.423676,0.00016712,2]
[329188396,1718165453580,-634.783256,0.00016712,2]
[329188398,1718165453590,-634.783259,0.00017,2]
[329188400,1718165453600,-266.423676,0.00017,2]
[329188402,1718165453611,-501.12487059,0.00017487,2]
[329188404,1718165453623,-5211.11139269,0.00017649,2]
[329188406,1718165453633,-331.038908,0.00017649,2]
[329188409,1718165453645,-331.038908,0.00017649,2]
[329188410,1718165453655,-331.038905,0.00017649,2]
[329188412,1718165453665,-500.0,0.00017649,2]
[329188414,1718165453676,-501.62506785,0.00017649,2]
[329188416,1718165453686,-500.0,0.00017649,2]
[329188418,1718165453696,-500.0,0.00017649,2]
[329188420,1718165453707,-500.0,0.00017649,2]
[329188422,1718165453717,-500.0,0.00017649,2]
[329188424,1718165453728,-500.0,0.00017649,2]
[329188426,1718165453738,-515.43118444,0.00017649,2]
[329188428,1718165453749,-500.0,0.00017649,2]
[329188430,1718165453760,-500.0,0.00017649,2]
[329188432,1718165453770,-504.60045704,0.00017649,2]
[329188434,1718165453780,-500.0,0.00017649,2]
[329188436,1718165453790,-159.15072163,0.00017649,2]
[329188438,1718165453801,-500.15873529,0.00017649,2]
[329188440,1718165453811,-500.78079665,0.00017649,2]
[329188442,1718165453821,-500.0,0.00017649,2]
[329188444,1718165453832,-508.41964231,0.00017649,2]
[329188446,1718165453842,-500.0,0.00017649,2]